[Event "Late-Titled-Tuesday-Blitz-May-07-2024"]
[Site "Chess.com"]
[Date "2024.05.07"]
[Round "8"]
[White "pouya21"]
[Black "MITerryble"]
[Result "0-1"]
[WhiteElo "2857"]
[BlackElo "3033"]
[TimeControl "180+1"]
[EndTime "15:30:03 PDT"]
[Termination "MITerryble won by resignation"]

1. e4 {[%clk 0:03:00.9]} 1... e6 {[%clk 0:03:00.5]} 2. d4 {[%clk 0:02:59.8]}
2... d5 {[%clk 0:03:01.1]} 3. e5 {[%clk 0:03:00.3]} 3... c5 {[%clk 0:03:01.3]}
4. c3 {[%clk 0:03:01]} 4... Qb6 {[%clk 0:03:01.8]} 5. Nf3 {[%clk 0:03:00.8]}
5... Bd7 {[%clk 0:03:02.3]} 6. Bd3 {[%clk 0:02:58.5]} 6... Bb5 {[%clk
0:02:58.6]} 7. dxc5 {[%clk 0:02:58.5]} 7... Bxc5 {[%clk 0:02:58.3]} 8. b4 {[%clk
0:02:59.2]} 8... Be7 {[%clk 0:02:53.7]} 9. Be3 {[%clk 0:02:55.2]} 9... Qa6
{[%clk 0:02:54]} 10. Bxb5+ {[%clk 0:02:55.5]} 10... Qxb5 {[%clk 0:02:54.9]} 11.
a4 {[%clk 0:02:55.9]} 11... Qd7 {[%clk 0:02:51.9]} 12. O-O {[%clk 0:02:54]}
12... Qc7 {[%clk 0:02:50.6]} 13. Na3 {[%clk 0:02:41]} 13... a6 {[%clk
0:02:45.4]} 14. Qb3 {[%clk 0:02:41]} 14... Nc6 {[%clk 0:02:43.6]} 15. c4 {[%clk
0:02:36.8]} 15... Nxb4 {[%clk 0:02:37]} 16. cxd5 {[%clk 0:02:26.9]} 16... Nxd5
{[%clk 0:02:37.1]} 17. Rac1 {[%clk 0:02:27.5]} 17... Qd7 {[%clk 0:02:25]} 18.
Nc4 {[%clk 0:02:20.1]} 18... b5 {[%clk 0:02:10.5]} 19. axb5 {[%clk 0:02:12]}
19... Qxb5 {[%clk 0:02:04.3]} 20. Qc2 {[%clk 0:02:06.8]} 20... Nh6 {[%clk
0:01:59.9]} 21. Bxh6 {[%clk 0:02:05.6]} 21... gxh6 {[%clk 0:01:59.7]} 22. Qd2
{[%clk 0:02:01.1]} 22... O-O {[%clk 0:01:26.2]} 23. Qxh6 {[%clk 0:01:58.4]}
23... Kh8 {[%clk 0:01:26.7]} 24. Nd6 {[%clk 0:01:53.9]} 24... Qd3 {[%clk
0:01:20.9]} 25. Ng5 {[%clk 0:01:22.8]} 25... Bxd6 {[%clk 0:00:56.4]} 26. exd6
{[%clk 0:01:20]} 26... Qg6 {[%clk 0:00:57]} 27. Qh4 {[%clk 0:01:15.9]} 27... Rg8
{[%clk 0:00:56.8]} 28. f4 {[%clk 0:01:04.5]} 28... f6 {[%clk 0:00:55]} 29. d7
{[%clk 0:00:57.5]} 29... fxg5 {[%clk 0:00:51.3]} 30. fxg5 {[%clk 0:00:58.4]}
30... Rad8 {[%clk 0:00:49.1]} 31. Rc6 {[%clk 0:00:51.7]} 31... Rxd7 {[%clk
0:00:45.8]} 32. Rxa6 {[%clk 0:00:46.8]} 32... Rdg7 {[%clk 0:00:45.9]} 33. g3
{[%clk 0:00:30.7]} 33... Re8 {[%clk 0:00:45.6]} 34. Re1 {[%clk 0:00:28.7]} 34...
Qf5 {[%clk 0:00:44]} 35. Qd4 {[%clk 0:00:26.7]} 35... Kg8 {[%clk 0:00:43.2]} 36.
Re5 {[%clk 0:00:20.4]} 36... Qf7 {[%clk 0:00:38.7]} 37. Qe4 {[%clk 0:00:18.7]}
37... Rf8 {[%clk 0:00:30]} 38. Qe1 {[%clk 0:00:15.2]} 38... Nc7 {[%clk
0:00:24.7]} 39. Rc6 {[%clk 0:00:15.2]} 39... Qf3 {[%clk 0:00:24.1]} 40. Rc3
{[%clk 0:00:14.9]} 40... Qf7 {[%clk 0:00:21.4]} 41. Rc6 {[%clk 0:00:15]} 41...
Qd7 {[%clk 0:00:20.9]} 42. Rc2 {[%clk 0:00:14]} 42... Qd4+ {[%clk 0:00:21.1]}
43. Qe3 {[%clk 0:00:13.9]} 43... Qxe3+ {[%clk 0:00:20.8]} 44. Rxe3 {[%clk
0:00:14.8]} 44... Re8 {[%clk 0:00:20.7]} 45. h4 {[%clk 0:00:15.2]} 45... Nd5
{[%clk 0:00:20.8]} 46. Re5 {[%clk 0:00:15.4]} 46... h6 {[%clk 0:00:16.9]} 47.
gxh6 {[%clk 0:00:12.7]} 47... Rxg3+ {[%clk 0:00:17.8]} 48. Kh2 {[%clk
0:00:13.3]} 48... Rg6 {[%clk 0:00:16.1]} 49. Rce2 {[%clk 0:00:13.4]} 49... Nc7
{[%clk 0:00:15.5]} 50. Rg5 {[%clk 0:00:13]} 50... Kh7 {[%clk 0:00:15.1]} 51. Rf2
{[%clk 0:00:13]} 51... Re7 {[%clk 0:00:14.7]} 52. Kg3 {[%clk 0:00:10.8]} 52...
Kxh6 {[%clk 0:00:14.5]} 53. Kg4 {[%clk 0:00:11.4]} 53... Nd5 {[%clk 0:00:14.3]}
54. Rf3 {[%clk 0:00:09.7]} 54... Reg7 {[%clk 0:00:13.8]} 55. Rxg6+ {[%clk
0:00:07.4]} 55... Rxg6+ {[%clk 0:00:14.7]} 56. Kh3 {[%clk 0:00:07.8]} 56... Rf6
{[%clk 0:00:14]} 57. Ra3 {[%clk 0:00:07.2]} 57... Rf4 {[%clk 0:00:13.7]} 58. Ra8
{[%clk 0:00:05.3]} 58... Re4 {[%clk 0:00:13.1]} 59. Kg3 {[%clk 0:00:05.2]} 59...
Kg6 {[%clk 0:00:10.1]} 60. Rg8+ {[%clk 0:00:05.4]} 60... Kf7 {[%clk 0:00:10.3]}
61. Ra8 {[%clk 0:00:05.4]} 61... Ne7 {[%clk 0:00:10.5]} 62. Ra7 {[%clk
0:00:05.3]} 62... Kf6 {[%clk 0:00:10.5]} 63. h5 {[%clk 0:00:05.5]} 63... Nf5+
{[%clk 0:00:10.7]} 64. Kf3 {[%clk 0:00:05.9]} 64... Rh4 {[%clk 0:00:11.6]} 65.
Rh7 {[%clk 0:00:05.5]} 65... Kg5 {[%clk 0:00:12.1]} 0-1

[Event "Late-Titled-Tuesday-Blitz-May-07-2024"]
[Site "Chess.com"]
[Date "2024.05.07"]
[Round "8"]
[White "BardArtem"]
[Black "RuperezA"]
[Result "1-0"]
[WhiteElo "2787"]
[BlackElo "2652"]
[TimeControl "180+1"]
[EndTime "15:30:04 PDT"]
[Termination "BardArtem won by resignation"]

1. e4 {[%clk 0:03:00.9]} 1... e6 {[%clk 0:02:55.3]} 2. d4 {[%clk 0:03:00.5]}
2... d5 {[%clk 0:02:56.2]} 3. Nc3 {[%clk 0:03:00.5]} 3... Bb4 {[%clk 0:02:50.9]}
4. Ne2 {[%clk 0:03:00.2]} 4... dxe4 {[%clk 0:02:49.8]} 5. a3 {[%clk 0:03:00.2]}
5... Bxc3+ {[%clk 0:02:49.8]} 6. Nxc3 {[%clk 0:03:00.7]} 6... Nc6 {[%clk
0:02:50.7]} 7. Bf4 {[%clk 0:03:00.4]} 7... Nge7 {[%clk 0:02:39.3]} 8. Qd2 {[%clk
0:02:57.3]} 8... Nd5 {[%clk 0:02:19.1]} 9. O-O-O {[%clk 0:02:52.8]} 9... Nxc3
{[%clk 0:02:19]} 10. Qxc3 {[%clk 0:02:51.8]} 10... O-O {[%clk 0:02:19.9]} 11.
Qg3 {[%clk 0:02:40.4]} 11... Re8 {[%clk 0:02:10.2]} 12. Bb5 {[%clk 0:02:25.6]}
12... Qd5 {[%clk 0:02:08.4]} 13. c4 {[%clk 0:02:18.2]} 13... Qf5 {[%clk
0:02:07.4]} 14. Bxc6 {[%clk 0:02:02.4]} 14... bxc6 {[%clk 0:02:08.3]} 15. Bxc7
{[%clk 0:02:03]} 15... a5 {[%clk 0:01:55.2]} 16. Qe5 {[%clk 0:01:58]} 16... Ba6
{[%clk 0:01:46.1]} 17. Qxf5 {[%clk 0:01:53.7]} 17... exf5 {[%clk 0:01:47]} 18.
b3 {[%clk 0:01:52.2]} 18... a4 {[%clk 0:01:45.7]} 19. Kc2 {[%clk 0:01:52.2]}
19... e3 {[%clk 0:01:32.1]} 20. fxe3 {[%clk 0:01:21.3]} 20... Rxe3 {[%clk
0:01:33]} 21. Rd3 {[%clk 0:01:15.8]} 21... axb3+ {[%clk 0:01:30.4]} 22. Rxb3
{[%clk 0:01:12.2]} 22... Re2+ {[%clk 0:01:18.5]} 23. Kd3 {[%clk 0:01:12.2]}
23... Rxg2 {[%clk 0:01:19.4]} 24. Rhb1 {[%clk 0:01:12.7]} 24... h6 {[%clk
0:00:55.2]} 25. Rb8+ {[%clk 0:01:11]} 25... Rxb8 {[%clk 0:00:55.5]} 26. Rxb8+
{[%clk 0:01:11.9]} 26... Kh7 {[%clk 0:00:55.3]} 27. Rb6 {[%clk 0:01:10.6]} 27...
Bc8 {[%clk 0:00:43.4]} 28. Rxc6 {[%clk 0:01:09.6]} 28... g5 {[%clk 0:00:42.8]}
29. Be5 {[%clk 0:00:52.1]} 29... Bb7 {[%clk 0:00:42]} 30. Rf6 {[%clk 0:00:46.6]}
30... Be4+ {[%clk 0:00:40.4]} 31. Kc3 {[%clk 0:00:42.7]} 31... Kg8 {[%clk
0:00:36.2]} 32. Rxh6 {[%clk 0:00:42.1]} 32... Kf8 {[%clk 0:00:29.4]} 33. Bf6
{[%clk 0:00:38.5]} 33... Ke8 {[%clk 0:00:28.4]} 34. d5 {[%clk 0:00:38.8]} 34...
f4 {[%clk 0:00:28]} 35. Rh8+ {[%clk 0:00:21.9]} 35... Kd7 {[%clk 0:00:27.8]} 36.
Rd8+ {[%clk 0:00:11.7]} 36... Kc7 {[%clk 0:00:28.4]} 37. d6+ {[%clk 0:00:07.5]}
37... Kc6 {[%clk 0:00:26.9]} 38. Be5 {[%clk 0:00:06.1]} 38... f3 {[%clk
0:00:23.6]} 39. Rc8+ {[%clk 0:00:06.5]} 39... Kd7 {[%clk 0:00:15.5]} 40. Rc7+
{[%clk 0:00:06.5]} 40... Ke6 {[%clk 0:00:16.3]} 41. Re7+ {[%clk 0:00:04.9]}
41... Kf5 {[%clk 0:00:15.2]} 42. d7 {[%clk 0:00:05.7]} 42... Rc2+ {[%clk
0:00:14.2]} 43. Kb4 {[%clk 0:00:05.2]} 43... Rd2 {[%clk 0:00:14.7]} 44. Bc7
{[%clk 0:00:04.6]} 44... f6 {[%clk 0:00:13.2]} 45. Rf7 {[%clk 0:00:02.6]} 45...
f2 {[%clk 0:00:13.1]} 46. Bd8 {[%clk 0:00:03.3]} 46... Kf4 {[%clk 0:00:09]} 47.
Rxf6+ {[%clk 0:00:03.3]} 47... Bf5 {[%clk 0:00:09.5]} 48. Bc7+ {[%clk
0:00:03.4]} 48... Kg4 {[%clk 0:00:09.7]} 49. h3+ {[%clk 0:00:03.7]} 49... Kxh3
{[%clk 0:00:07.9]} 50. Rxf5 {[%clk 0:00:04.3]} 50... Rxd7 {[%clk 0:00:07.6]} 51.
Bb6 {[%clk 0:00:03]} 51... g4 {[%clk 0:00:05.3]} 52. Rxf2 {[%clk 0:00:02.9]}
52... g3 {[%clk 0:00:06]} 53. Rf8 {[%clk 0:00:03.6]} 53... g2 {[%clk 0:00:05.7]}
54. Rh8+ {[%clk 0:00:03.7]} 54... Kg4 {[%clk 0:00:05.8]} 55. Rg8+ {[%clk
0:00:04.6]} 55... Kf3 {[%clk 0:00:06.7]} 56. Kb5 {[%clk 0:00:04]} 56... Rd3
{[%clk 0:00:06]} 57. a4 {[%clk 0:00:04.3]} 57... Rb3+ {[%clk 0:00:06.9]} 58. Kc6
{[%clk 0:00:04.6]} 58... Rb4 {[%clk 0:00:06.9]} 59. a5 {[%clk 0:00:03.6]} 59...
Rxc4+ {[%clk 0:00:07.2]} 60. Kb7 {[%clk 0:00:04.3]} 1-0

[Event "Late-Titled-Tuesday-Blitz-May-07-2024"]
[Site "Chess.com"]
[Date "2024.05.07"]
[Round "8"]
[White "betta2004"]
[Black "jinxy2009"]
[Result "1/2-1/2"]
[WhiteElo "2476"]
[BlackElo "2295"]
[TimeControl "180+1"]
[EndTime "15:30:09 PDT"]
[Termination "Game drawn by stalemate"]

1. Nf3 {[%clk 0:03:00.9]} 1... Nf6 {[%clk 0:02:58.8]} 2. e3 {[%clk 0:03:00.4]}
2... g6 {[%clk 0:02:59]} 3. b3 {[%clk 0:03:00.6]} 3... Bg7 {[%clk 0:02:59.3]} 4.
Bb2 {[%clk 0:03:01.3]} 4... O-O {[%clk 0:02:59.7]} 5. d4 {[%clk 0:03:01.8]} 5...
d5 {[%clk 0:03:00.1]} 6. Nbd2 {[%clk 0:03:02.2]} 6... c6 {[%clk 0:02:56.8]} 7.
Bd3 {[%clk 0:02:59.5]} 7... Nbd7 {[%clk 0:02:53.6]} 8. O-O {[%clk 0:02:59.8]}
8... Re8 {[%clk 0:02:52]} 9. Ne5 {[%clk 0:02:59.7]} 9... Nxe5 {[%clk 0:02:49.2]}
10. dxe5 {[%clk 0:02:59.7]} 10... Ng4 {[%clk 0:02:43]} 11. Nf3 {[%clk
0:02:57.8]} 11... Qc7 {[%clk 0:02:38.4]} 12. e4 {[%clk 0:02:48.3]} 12... Nxe5
{[%clk 0:02:29.4]} 13. Nxe5 {[%clk 0:02:45.7]} 13... Bxe5 {[%clk 0:02:29.5]} 14.
Bxe5 {[%clk 0:02:45.1]} 14... Qxe5 {[%clk 0:02:30.4]} 15. exd5 {[%clk
0:02:45.8]} 15... Qxd5 {[%clk 0:02:27.8]} 16. Qe2 {[%clk 0:02:44.8]} 16... Bf5
{[%clk 0:02:24.8]} 17. Rad1 {[%clk 0:02:39.6]} 17... Bxd3 {[%clk 0:02:22.1]} 18.
Rxd3 {[%clk 0:02:40.5]} 18... Qa5 {[%clk 0:02:22.2]} 19. c4 {[%clk 0:02:35.6]}
19... Rad8 {[%clk 0:02:21.6]} 20. Re3 {[%clk 0:02:33.9]} 20... e6 {[%clk
0:02:21.2]} 21. f4 {[%clk 0:02:33.1]} 21... Rd2 {[%clk 0:02:21]} 22. Qg4 {[%clk
0:02:29.9]} 22... Qxa2 {[%clk 0:02:20.8]} 23. f5 {[%clk 0:02:22.1]} 23... Qc2
{[%clk 0:01:29.9]} 24. fxe6 {[%clk 0:02:20.3]} 24... f5 {[%clk 0:01:28.6]} 25.
Qg5 {[%clk 0:02:13.7]} 25... Re2 {[%clk 0:01:19.8]} 26. Re1 {[%clk 0:02:09.5]}
26... Rxe1+ {[%clk 0:01:17]} 27. Rxe1 {[%clk 0:02:09.5]} 27... Qc3 {[%clk
0:01:13.2]} 28. Re3 {[%clk 0:02:03.8]} 28... Qd4 {[%clk 0:01:05.9]} 29. Kf1
{[%clk 0:01:59.1]} 29... Kg7 {[%clk 0:00:58.4]} 30. Rh3 {[%clk 0:01:26.7]} 30...
Kg8 {[%clk 0:00:11.5]} 31. Re3 {[%clk 0:01:03.5]} 31... Qg7 {[%clk 0:00:11.9]}
32. Qf4 {[%clk 0:00:58.1]} 32... Qf6 {[%clk 0:00:11.1]} 33. Qd6 {[%clk 0:00:57]}
33... Qe7 {[%clk 0:00:10.6]} 34. c5 {[%clk 0:00:55.8]} 34... Kg7 {[%clk
0:00:09.7]} 35. Qd4+ {[%clk 0:00:55.2]} 35... Qf6 {[%clk 0:00:09.9]} 36. Qd7+
{[%clk 0:00:55.6]} 36... Re7 {[%clk 0:00:10.4]} 37. Qd6 {[%clk 0:00:56.1]} 37...
f4 {[%clk 0:00:08.7]} 38. Re2 {[%clk 0:00:54.6]} 38... g5 {[%clk 0:00:07.6]} 39.
h3 {[%clk 0:00:54.5]} 39... f3 {[%clk 0:00:07.8]} 40. Rf2 {[%clk 0:00:53.1]}
40... fxg2+ {[%clk 0:00:07.2]} 41. Kxg2 {[%clk 0:00:53.2]} 41... Qxe6 {[%clk
0:00:07.7]} 42. Qd4+ {[%clk 0:00:53]} 42... Qe5 {[%clk 0:00:07.5]} 43. Qd8
{[%clk 0:00:49.5]} 43... Qd5+ {[%clk 0:00:06.8]} 44. Qxd5 {[%clk 0:00:49.3]}
44... cxd5 {[%clk 0:00:07.7]} 45. Rf5 {[%clk 0:00:50]} 45... Kg6 {[%clk
0:00:08.1]} 46. Rxd5 {[%clk 0:00:50.3]} 46... Re2+ {[%clk 0:00:08.4]} 47. Kf3
{[%clk 0:00:50.2]} 47... Rc2 {[%clk 0:00:08.6]} 48. Rd6+ {[%clk 0:00:47.5]}
48... Kh5 {[%clk 0:00:08.3]} 49. Rd7 {[%clk 0:00:47.9]} 49... Rc3+ {[%clk
0:00:08.5]} 50. Kg2 {[%clk 0:00:48]} 50... Rxb3 {[%clk 0:00:08.9]} 51. Rxh7+
{[%clk 0:00:48.3]} 51... Kg6 {[%clk 0:00:08.6]} 52. Rc7 {[%clk 0:00:49.2]} 52...
Rb2+ {[%clk 0:00:07.3]} 53. Kg3 {[%clk 0:00:49]} 53... Rb3+ {[%clk 0:00:07.7]}
54. Kg4 {[%clk 0:00:48.8]} 54... Rb4+ {[%clk 0:00:07.5]} 55. Kg3 {[%clk
0:00:49.4]} 55... a5 {[%clk 0:00:07.8]} 56. Rc8 {[%clk 0:00:43.8]} 56... a4
{[%clk 0:00:08.1]} 57. c6 {[%clk 0:00:41.9]} 57... bxc6 {[%clk 0:00:08]} 58.
Rxc6+ {[%clk 0:00:42.1]} 58... Kh5 {[%clk 0:00:08.4]} 59. Ra6 {[%clk 0:00:42]}
59... Rb3+ {[%clk 0:00:08.9]} 60. Kg2 {[%clk 0:00:42.2]} 60... a3 {[%clk
0:00:09.5]} 61. Ra8 {[%clk 0:00:41.1]} 61... Kg6 {[%clk 0:00:08.6]} 62. Rg8+
{[%clk 0:00:41.2]} 62... Kf5 {[%clk 0:00:08.8]} 63. Ra8 {[%clk 0:00:42.1]} 63...
Ke4 {[%clk 0:00:08.9]} 64. Ra4+ {[%clk 0:00:42.6]} 64... Kd3 {[%clk 0:00:09.1]}
65. Kg3 {[%clk 0:00:42.5]} 65... Kc2+ {[%clk 0:00:09.2]} 66. Kg4 {[%clk
0:00:43]} 66... Kb2 {[%clk 0:00:08.9]} 67. Re4 {[%clk 0:00:32.3]} 67... a2
{[%clk 0:00:08.4]} 68. Re2+ {[%clk 0:00:32.7]} 68... Ka3 {[%clk 0:00:08]} 69.
Re1 {[%clk 0:00:32.2]} 69... Rb1 {[%clk 0:00:08.1]} 70. Re3+ {[%clk 0:00:32.8]}
70... Kb4 {[%clk 0:00:08.1]} 71. Re4+ {[%clk 0:00:33.1]} 71... Kb5 {[%clk
0:00:08.3]} 72. Re5+ {[%clk 0:00:33.4]} 72... Kc6 {[%clk 0:00:05.5]} 73. Ra5
{[%clk 0:00:32.7]} 73... a1=Q {[%clk 0:00:05.5]} 74. Rxa1 {[%clk 0:00:33.4]}
74... Rxa1 {[%clk 0:00:06.4]} 75. Kxg5 {[%clk 0:00:34.1]} 75... Kd6 {[%clk
0:00:06.9]} 76. h4 {[%clk 0:00:32.8]} 76... Ke6 {[%clk 0:00:07.4]} 77. Kg6
{[%clk 0:00:33.2]} 77... Rg1+ {[%clk 0:00:06.8]} 78. Kh6 {[%clk 0:00:33.8]}
78... Kf7 {[%clk 0:00:07.4]} 79. h5 {[%clk 0:00:34.1]} 79... Kg8 {[%clk
0:00:05.5]} 1/2-1/2

[Event "Late-Titled-Tuesday-Blitz-May-07-2024"]
[Site "Chess.com"]
[Date "2024.05.07"]
[Round "8"]
[White "SoCalJuniorChess"]
[Black "finec2"]
[Result "0-1"]
[WhiteElo "2176"]
[BlackElo "2280"]
[TimeControl "180+1"]
[EndTime "15:30:12 PDT"]
[Termination "finec2 won by resignation"]

1. d4 {[%clk 0:03:00.9]} 1... Nf6 {[%clk 0:02:59.2]} 2. Nc3 {[%clk 0:03:01.2]}
2... d5 {[%clk 0:02:58.5]} 3. Bf4 {[%clk 0:03:01.7]} 3... a6 {[%clk 0:02:57.4]}
4. Nf3 {[%clk 0:03:00.1]} 4... Bf5 {[%clk 0:02:57]} 5. e3 {[%clk 0:02:59.9]}
5... e6 {[%clk 0:02:56.6]} 6. Bd3 {[%clk 0:02:59.9]} 6... Bxd3 {[%clk
0:02:54.5]} 7. Qxd3 {[%clk 0:03:00.8]} 7... Bd6 {[%clk 0:02:54.2]} 8. Ne5 {[%clk
0:02:57.8]} 8... O-O {[%clk 0:02:50.5]} 9. h3 {[%clk 0:02:56.3]} 9... c5 {[%clk
0:02:49.4]} 10. dxc5 {[%clk 0:02:55.8]} 10... Bxc5 {[%clk 0:02:48.8]} 11. O-O
{[%clk 0:02:55.8]} 11... Nc6 {[%clk 0:02:46]} 12. Nxc6 {[%clk 0:02:53.5]} 12...
bxc6 {[%clk 0:02:45.7]} 13. e4 {[%clk 0:02:53.6]} 13... a5 {[%clk 0:02:35]} 14.
Bg5 {[%clk 0:02:47.9]} 14... Be7 {[%clk 0:02:32]} 15. Rad1 {[%clk 0:02:41.2]}
15... Rb8 {[%clk 0:02:23.2]} 16. b3 {[%clk 0:02:36.5]} 16... Rb4 {[%clk
0:02:20.7]} 17. a3 {[%clk 0:02:30.6]} 17... Rb8 {[%clk 0:02:08.4]} 18. Qa6
{[%clk 0:02:26.2]} 18... h6 {[%clk 0:01:37.4]} 19. Bh4 {[%clk 0:02:21.1]} 19...
g5 {[%clk 0:01:34.8]} 20. Bg3 {[%clk 0:02:18.4]} 20... Rc8 {[%clk 0:01:32.9]}
21. Qa7 {[%clk 0:02:07.8]} 21... Bxa3 {[%clk 0:01:27.5]} 22. e5 {[%clk 0:01:57]}
22... Nh5 {[%clk 0:01:23.2]} 23. Ne4 {[%clk 0:01:55.2]} 23... Be7 {[%clk
0:01:15.7]} 24. Bh2 {[%clk 0:01:49.9]} 24... Qc7 {[%clk 0:01:13.8]} 25. Qxc7
{[%clk 0:01:45.9]} 25... Rxc7 {[%clk 0:01:13.4]} 26. Nd6 {[%clk 0:01:46.6]}
26... Ra7 {[%clk 0:01:05.1]} 27. Rd4 {[%clk 0:01:44]} 27... Ng7 {[%clk 0:01:03]}
28. g4 {[%clk 0:01:42.4]} 28... Ne8 {[%clk 0:00:48.1]} 29. Nc8 {[%clk
0:01:26.9]} 29... Rc7 {[%clk 0:00:43.8]} 30. Nxe7+ {[%clk 0:01:27.3]} 30... Rxe7
{[%clk 0:00:43.5]} 31. Ra1 {[%clk 0:01:27.9]} 31... Ra7 {[%clk 0:00:33.8]} 32.
Rda4 {[%clk 0:01:27.6]} 32... Nc7 {[%clk 0:00:33.5]} 33. Rxa5 {[%clk 0:01:19.7]}
33... Rxa5 {[%clk 0:00:33]} 34. Rxa5 {[%clk 0:01:20.6]} 34... Ra8 {[%clk
0:00:33.2]} 35. Rc5 {[%clk 0:01:17.5]} 35... Ra6 {[%clk 0:00:31.1]} 36. f4
{[%clk 0:01:14.9]} 36... gxf4 {[%clk 0:00:19.4]} 37. Bxf4 {[%clk 0:01:15.8]}
37... Kg7 {[%clk 0:00:19.9]} 38. c4 {[%clk 0:01:14.6]} 38... Kg6 {[%clk
0:00:16.8]} 39. b4 {[%clk 0:01:08.6]} 39... Ra1+ {[%clk 0:00:09.2]} 40. Kf2
{[%clk 0:01:07.6]} 40... Na6 {[%clk 0:00:08.3]} 41. Rxc6 {[%clk 0:00:55.2]}
41... Nxb4 {[%clk 0:00:08.2]} 42. cxd5 {[%clk 0:00:55.8]} 42... Nxd5 {[%clk
0:00:08.2]} 43. Bd2 {[%clk 0:00:52.1]} 43... Ra2 {[%clk 0:00:07.6]} 44. Ke1
{[%clk 0:00:51]} 44... Ra1+ {[%clk 0:00:05.3]} 45. Ke2 {[%clk 0:00:49]} 45...
Ra2 {[%clk 0:00:05.3]} 46. Kd3 {[%clk 0:00:45.5]} 46... Ra3+ {[%clk 0:00:04.5]}
47. Ke2 {[%clk 0:00:37]} 47... Rxh3 {[%clk 0:00:04.5]} 48. Rc8 {[%clk
0:00:33.8]} 48... Rh2+ {[%clk 0:00:04.9]} 49. Ke1 {[%clk 0:00:33.7]} 49... Rh1+
{[%clk 0:00:04.7]} 50. Ke2 {[%clk 0:00:33.2]} 50... Rh2+ {[%clk 0:00:05]} 51.
Ke1 {[%clk 0:00:33.6]} 51... Rh1+ {[%clk 0:00:04.5]} 52. Ke2 {[%clk 0:00:33.9]}
52... Kh7 {[%clk 0:00:04.3]} 53. Rf8 {[%clk 0:00:32.8]} 53... Kg7 {[%clk
0:00:04.9]} 54. Ra8 {[%clk 0:00:30.2]} 54... Rh2+ {[%clk 0:00:05.2]} 55. Ke1
{[%clk 0:00:29.7]} 55... Rg2 {[%clk 0:00:05.6]} 56. Ra4 {[%clk 0:00:27.2]} 56...
Kg6 {[%clk 0:00:06.3]} 57. Re4 {[%clk 0:00:26.9]} 57... Ne7 {[%clk 0:00:03.8]}
58. Rd4 {[%clk 0:00:26.2]} 58... Nd5 {[%clk 0:00:04.1]} 59. Kf1 {[%clk
0:00:25.6]} 59... Rh2 {[%clk 0:00:03.1]} 60. Kg1 {[%clk 0:00:25.4]} 60... Rh4
{[%clk 0:00:03.1]} 61. Kg2 {[%clk 0:00:23.8]} 61... h5 {[%clk 0:00:03]} 62. g5
{[%clk 0:00:22.7]} 62... Rxd4 {[%clk 0:00:03]} 63. Be1 {[%clk 0:00:20.8]} 63...
Re4 {[%clk 0:00:03.2]} 64. Bf2 {[%clk 0:00:20.9]} 64... Kxg5 {[%clk 0:00:03.5]}
0-1

[Event "Late-Titled-Tuesday-Blitz-May-07-2024"]
[Site "Chess.com"]
[Date "2024.05.07"]
[Round "8"]
[White "m_ezat"]
[Black "Slovafn"]
[Result "1-0"]
[WhiteElo "2577"]
[BlackElo "2421"]
[TimeControl "180+1"]
[EndTime "15:30:18 PDT"]
[Termination "m_ezat won on time"]

1. d4 {[%clk 0:03:00.9]} 1... Nf6 {[%clk 0:02:57.2]} 2. c4 {[%clk 0:02:58.3]}
2... c5 {[%clk 0:02:57.8]} 3. d5 {[%clk 0:02:57.4]} 3... g6 {[%clk 0:02:58.5]}
4. Nc3 {[%clk 0:02:56.1]} 4... Bg7 {[%clk 0:02:59.1]} 5. e4 {[%clk 0:02:56.6]}
5... d6 {[%clk 0:02:59.4]} 6. Be2 {[%clk 0:02:57.2]} 6... O-O {[%clk 0:02:59.8]}
7. Bg5 {[%clk 0:02:57.8]} 7... h6 {[%clk 0:02:59.6]} 8. Bf4 {[%clk 0:02:57.7]}
8... e6 {[%clk 0:02:59.7]} 9. Qd2 {[%clk 0:02:57.6]} 9... exd5 {[%clk
0:02:59.2]} 10. exd5 {[%clk 0:02:58.5]} 10... Kh7 {[%clk 0:02:58.6]} 11. h3
{[%clk 0:02:58.6]} 11... Re8 {[%clk 0:02:57.5]} 12. Nf3 {[%clk 0:02:58.7]} 12...
Ne4 {[%clk 0:02:55.9]} 13. Nxe4 {[%clk 0:02:57.8]} 13... Rxe4 {[%clk 0:02:56.8]}
14. O-O {[%clk 0:02:57.4]} 14... Qf6 {[%clk 0:02:50.4]} 15. Bg3 {[%clk 0:02:53]}
15... Qxb2 {[%clk 0:02:49.7]} 16. Qxb2 {[%clk 0:02:28.3]} 16... Bxb2 {[%clk
0:02:49]} 17. Rae1 {[%clk 0:02:28.4]} 17... Bc3 {[%clk 0:02:45.6]} 18. Bd3
{[%clk 0:02:11]} 18... Rxe1 {[%clk 0:02:40]} 19. Nxe1 {[%clk 0:02:10.4]} 19...
Be5 {[%clk 0:02:28]} 20. Bxe5 {[%clk 0:01:57.2]} 20... dxe5 {[%clk 0:02:28.9]}
21. Nf3 {[%clk 0:01:52.1]} 21... f6 {[%clk 0:02:12.3]} 22. Nh4 {[%clk
0:01:37.6]} 22... f5 {[%clk 0:02:11.6]} 23. f3 {[%clk 0:01:37.2]} 23... Kg7
{[%clk 0:01:49.5]} 24. g4 {[%clk 0:01:35.1]} 24... Kf6 {[%clk 0:01:47]} 25. Kh2
{[%clk 0:01:29.8]} 25... Na6 {[%clk 0:01:42.4]} 26. Rg1 {[%clk 0:01:29.5]} 26...
Nb4 {[%clk 0:01:37.2]} 27. Bb1 {[%clk 0:01:29.2]} 27... b5 {[%clk 0:01:34.9]}
28. a3 {[%clk 0:01:23.3]} 28... bxc4 {[%clk 0:01:33.7]} 29. axb4 {[%clk
0:01:22.3]} 29... cxb4 {[%clk 0:01:34.2]} 30. gxf5 {[%clk 0:01:22.9]} 30... g5
{[%clk 0:01:33.5]} 31. Ng2 {[%clk 0:01:13.4]} 31... a5 {[%clk 0:01:29.3]} 32.
Ne3 {[%clk 0:01:11.9]} 32... c3 {[%clk 0:01:22.4]} 33. Ng4+ {[%clk 0:01:09.8]}
33... Kg7 {[%clk 0:01:22.4]} 34. Be4 {[%clk 0:01:05.1]} 34... b3 {[%clk
0:01:12.1]} 35. d6 {[%clk 0:01:01.2]} 35... Rb8 {[%clk 0:01:03.3]} 36. Nxe5
{[%clk 0:00:46.4]} 36... a4 {[%clk 0:01:01.9]} 37. d7 {[%clk 0:00:45.5]} 37...
Bxd7 {[%clk 0:00:58.9]} 38. Nxd7 {[%clk 0:00:45.5]} 38... Rd8 {[%clk 0:00:56.4]}
39. f6+ {[%clk 0:00:45.8]} 39... Kf7 {[%clk 0:00:54]} 40. Bd5+ {[%clk
0:00:45.8]} 40... Ke8 {[%clk 0:00:47.5]} 41. Bc6 {[%clk 0:00:32.8]} 41... a3
{[%clk 0:00:32.5]} 42. Nc5+ {[%clk 0:00:32]} 42... Kf7 {[%clk 0:00:32.5]} 43.
Nxb3 {[%clk 0:00:32.7]} 43... c2 {[%clk 0:00:28.7]} 44. Rc1 {[%clk 0:00:30.9]}
44... Rb8 {[%clk 0:00:10.2]} 45. Rxc2 {[%clk 0:00:29.5]} 45... Kxf6 {[%clk
0:00:10.8]} 46. Bd5 {[%clk 0:00:15.7]} 46... Rb5 {[%clk 0:00:09.5]} 47. Bc4
{[%clk 0:00:15.9]} 47... Rb4 {[%clk 0:00:10]} 48. Kg3 {[%clk 0:00:15.5]} 48...
h5 {[%clk 0:00:09.7]} 49. Kf2 {[%clk 0:00:15.3]} 49... Kf5 {[%clk 0:00:09.9]}
50. Ke3 {[%clk 0:00:15.4]} 50... Ra4 {[%clk 0:00:07.9]} 51. Bd3+ {[%clk
0:00:11.8]} 51... Ke5 {[%clk 0:00:07.7]} 52. Ra2 {[%clk 0:00:09.4]} 52... Ra7
{[%clk 0:00:03]} 53. Nc5 {[%clk 0:00:08.1]} 53... Ra5 {[%clk 0:00:02.6]} 54. Ne4
{[%clk 0:00:07.7]} 54... g4 {[%clk 0:00:02.1]} 55. hxg4 {[%clk 0:00:07.1]} 55...
h4 {[%clk 0:00:02.6]} 56. f4+ {[%clk 0:00:06.6]} 56... Ke6 {[%clk 0:00:02.8]}
57. Nc3 {[%clk 0:00:06.3]} 57... h3 {[%clk 0:00:02.1]} 58. Be4 {[%clk
0:00:06.3]} 58... Ra7 {[%clk 0:00:01.8]} 59. g5 {[%clk 0:00:05.6]} 59... h2
{[%clk 0:00:01.5]} 60. f5+ {[%clk 0:00:05]} 60... Ke7 {[%clk 0:00:01.4]} 61. f6+
{[%clk 0:00:04.9]} 61... Ke8 {[%clk 0:00:01.4]} 62. Nd5 {[%clk 0:00:05.2]} 62...
Kf8 {[%clk 0:00:00.7]} 63. Bh1 {[%clk 0:00:05.5]} 63... Ra4 {[%clk 0:00:00.2]}
64. Be4 {[%clk 0:00:06.4]} 64... Rb4 {[%clk 0:00:00.4]} 65. Nxb4 {[%clk
0:00:05.5]} 1-0